Cogmind - Beta 10.1 @@@ ROGUE MODE // 2021.04.26 @ 10:51:19 Player: Farfid Result: Destroyed by as-17642 with Assembled Heavy Rifle Performance ------------- Evolutions (0) 0 Regions Visited (2) 400 Robots Destroyed (18) 90 Value Destroyed (354) 354 Prototype IDs (0) 0 Alien Tech Used (0) 0 Bonus (0) 0 TOTAL SCORE: 844 Bonus ------- None Cogmind --------- Core Integrity 0/250 Matter 291/300 Energy 248/250 System Corruption 0% Temperature Cool (0) Movement Core (400) Ox7 Location -10/Mines Parts ------- > --- POWER (1) -------- Ion Engine > --- PROPULSION (2) --- (None) > --- UTILITY (2) ------ Large Storage Unit > --- WEAPON (2) ------- Assault Rifle > --- INVENTORY (10) --- Light Nuclear Core Improved Heat Sink Large Storage Unit Large Storage Unit Recalibrator Grenade Launcher Grenade Launcher Peak State ------------ > --- POWER ------------ Light Ion Engine > --- PROPULSION ------- Wheel Wheel > --- UTILITY ---------- Large Storage Unit Targeting Computer > --- WEAPON ----------- Assault Rifle Assault Rifle > --- INVENTORY -------- Improved Heat Sink Recalibrator Assault Rifle Light Assault Rifle Light Assault Rifle Grenade Launcher [Rating: 8] Favorites ----------- Power Ion Engine Engine Ion Engine Propulsion Wheel Wheel Wheel Utility Targeting Computer Storage Large Storage Unit Processor Targeting Computer Weapon Assault Rifle Ballistic Gun Assault Rifle Build | -11 -10 -10 ------- Run | Scr Mat Min Slots Evolved . | . . . Power . | . . . Propulsion . | . . . Utility . | . . . Weapon . | . . . Parts Attached 15 | 7 4 4 Power 2 | 1 1 . Engine 2 | 1 1 . Core . | . . . Reactor . | . . . Propulsion 3 | 2 . 1 Treads . | . . . Leg . | . . . Wheel 3 | 2 . 1 Hover . | . . . Flight . | . . . Utility 3 | 1 2 . Device . | . . . Storage 2 | 1 1 . Processor 1 | . 1 . Hackware . | . . . Protection . | . . . Artifact . | . . . Weapon 7 | 3 1 3 Energy Gun . | . . . Energy Cannon . | . . . Ballistic Gun 7 | 3 1 3 Ballistic Cannon . | . . . Launcher . | . . . Special Weapon . | . . . Impact Weapon . | . . . Slashing Weapon . | . . . Piercing Weapon . | . . . Special Melee Weapon . | . . . Unidentified Prototypes . | . . . Parts Lost 9 | . 1 8 Power 1 | . 1 . Propulsion 3 | . . 3 Utility 1 | . . 1 Weapon 4 | . . 4 Highest Loss Streak 6 | . 1 6 Average Slot Usage (%) 96 | . 97 86 Engine 14 | . 14 14 Wheel 26 | . 28 15 Storage 14 | . 14 14 Processor 11 | . 11 14 Ballistic Gun 28 | . 28 28 Naked Turns . | . . . Heaviest Build 25 | 11 25 23 Greatest Support 20 | 20 20 16 Greatest Overweight (x) 2 | . 1 2 Average Overweight (x) . | . . 1 Largest Inventory Capacity 10 | 6 10 10 Average Capacity 9 | 4 9 10 Most Carried 10 | 4 10 10 Average Carried 7 | 2 7 9 Final Capacity 10 | 6 10 10 Final Carried 10 | 1 10 7 Class Distribution -------------------- 100% | Mutant Dominant Class ---------------- Mutant | -10/Materials Mutant | -10/Mines Resources | -11 -10 -10 ----------- Run | Scr Mat Min Matter Collected 495 | 149 328 18 Remotely . | . . . Salvage Created 506 | . 428 78 Parts 35 | . 30 5 Haulers Intercepted 1 | . 1 . Recyclers Shooed 1 | . 1 . Parts Field Recycled . | . . . Retrieved Matter . | . . . Parts Self-Destructed . | . . . Prevented . | . . . Kills | -11 -10 -10 ------- Run | Scr Mat Min Combat Hostiles Destroyed 12 | . 10 2 Guns 12 | . 10 2 Classes Destroyed 7 | . 7 . Worker 1 | . 1 . Hauler 1 | . 1 . Mechanic 1 | . 1 . Operator 1 | . 1 . Watcher 2 | . 2 . Swarmer 6 | . 6 . Grunt 6 | . 4 2 Best Kill Streak 5 | . 5 2 Combat Bots Only 3 | . 3 2 Max Kills in Single Turn 2 | . 2 1 Gunslinging 1 | . 1 . Exploded . | . . . Melee . | . . . Uniques/NPCs Destroyed . | . . . Combat | -11 -10 -10 -------- Run | Scr Mat Min Damage Taken 977 | . 287 690 Core 258 | . 62 196 Absorbed by Shields . | . . . Core Remaining (%) 100 | 100 . . Volleys Fired 36 | . 29 7 Largest 2 | . 2 2 Hottest 40 | . 40 40 Shots Fired 72 | . 58 14 Gun 72 | . 58 14 Cannon . | . . . Launcher . | . . . Special . | . . . Kinetic 72 | . 58 14 Thermal . | . . . Explosive . | . . . Electromagnetic . | . . . Robot Hit Streak 8 | . 8 6 Robot Miss Streak 3 | . 3 1 Penetration Max . | . . . Secondary Targets 2 | . 1 1 Max Gunslinging Chain 1 | . 1 1 Shots Hit Robots 52 | . 40 12 Core Hits 29 | . 23 6 Critical Hits . | . . . Critical Kills . | . . . Critical Parts Destroyed . | . . . Melee Attacks . | . . . Impact . | . . . Slashing . | . . . Piercing . | . . . Sneak Attacks . | . . . Combat Hostiles . | . . . Follow-up Attacks . | . . . Damage Inflicted 626 | . 517 109 Guns 626 | . 517 109 Cannons . | . . . Explosions . | . . . Melee . | . . . Ramming . | . . . Kinetic 626 | . 517 109 Thermal . | . . . Explosive . | . . . Electromagnetic . | . . . Impact . | . . . Slashing . | . . . Piercing . | . . . Highest Corruption . | . . . Average Corruption . | . . . Corruption Purged . | . . . Overload Shots . | . . . Overflow Damage . | . . . Projectiles . | . . . Explosions . | . . . Melee . | . . . Knockbacks . | . . . Impact . | . . . Kinetic . | . . . Secondary . | . . . Self-Inflicted Damage . | . . . Shots . | . . . Rammed . | . . . Targets Rammed . | . . . Kicked . | . . . Crushed . | . . . Highest Temperature 15 | . 6 15 Average Temperature 7 | . 2 11 Received Heat Transfer 196 | . 75 121 Siege Activations . | . . . Robots Corrupted . | . . . Combat Hostiles . | . . . Parts Fried . | . . . Impact Corruptions . | . . . Robots Melted . | . . . Combat Hostiles . | . . . Parts Melted . | . . . Heat Transferred . | . . . Parts Sabotaged . | . . . Parts Stolen . | . . . Parts Stripped . | . . . Power Chain Reactions . | . . . Missiles Intercepted . | . . . Alert | -11 -10 -10 ------- Run | Scr Mat Min Peak Influence 348 | . 348 112 Initial 67 | . . 67 Average 119 | . 131 90 Maximum Alert Level 1 | . 1 . Low Security (%) 82 | 100 78 100 Level 1 17 | . 21 . Level 2 . | . . . Level 3 . | . . . Level 4 . | . . . Level 5 . | . . . High Security . | . . . Max Security . | . . . Squads Dispatched 3 | . 3 . Investigation 1 | . 1 . Extermination . | . . . Reinforcement 2 | . 2 . Assault . | . . . Garrison . | . . . Intercept . | . . . Construction Impeded . | . . . Haulers Reinforced . | . . . Stealth | -11 -10 -10 --------- Run | Scr Mat Min Distress Signals 1 | . 1 . Communications Jammed . | . . . Distress Signals . | . . . Times Spotted 43 | . 21 22 Peak Tracking Total 20 | . 4 20 Tactical Retreats 3 | . 3 . Traps | -11 -10 -10 ------- Run | Scr Mat Min Traps Triggered 2 | . 2 . Indirectly . | . . . Trap Hack Attempts . | . . . Triggered . | . . . Disarmed . | . . . Reprogrammed . | . . . Reused . | . . . Traps Extracted . | . . . Installed . | . . . Triggered . | . . . Machines | -11 -10 -10 ---------- Run | Scr Mat Min Machines Disabled . | . . . Max in Single Turn . | . . . Machines Sabotaged . | . . . Garrisons Compromised . | . . . Overloaded Fab Kills . | . . . Fab Network Shutdowns . | . . . Hacking | -11 -10 -10 --------- Run | Scr Mat Min Machines Accessed 5 | . 5 . Terminals 4 | . 4 . Fabricators . | . . . Repair Stations . | . . . Recycling Units 1 | . 1 . Scanalyzers . | . . . Garrison Access . | . . . Total Hacks 10 | . 10 . Successful 8 | . 8 . Failed 2 | . 2 . Catastrophic . | . . . Database Lockouts . | . . . Manual 2 | . 2 . Terminals 9 | . 9 . Fabricators . | . . . Repair Stations . | . . . Recycling Units 1 | . 1 . Scanalyzers . | . . . Garrison Access . | . . . Terminal Hacks 7 | . 7 . Branch Access Points 1 | . 1 . Recycling Unit Index 1 | . 1 . Alert Level 1 | . 1 . Unreport Threat 1 | . 1 . Hauler Manifests 2 | . 2 . Zone Layout 1 | . 1 . Fabricator Hacks . | . . . Repair Station Hacks . | . . . Recycling Unit Hacks . | . . . Scanalyzer . | . . . Garrison Access Hacks . | . . . Unauthorized Hacks 1 | . 1 . Terminals . | . . . Fabricators . | . . . Repair Stations . | . . . Recycling Units 1 | . 1 . Tunnel 1 | . 1 . Scanalyzers . | . . . Garrison Access . | . . . Data Cores Recovered 1 | . 1 . Used 1 | . 1 . Hacking Detections . | . . . Full Trace Events . | . . . Feedback Events . | . . . Feedback Blocked . | . . . Robot Schematics Acquired . | . . . Robots Built . | . . . Matter . | . . . Time . | . . . Total Robot Build Rating . | . . . Part Schematics Acquired . | . . . Parts Built . | . . . Matter . | . . . Time . | . . . Total Part Build Rating . | . . . Parts Repaired . | . . . Time . | . . . Parts Recycled . | . . . Recycled Matter . | . . . Retrieved Matter . | . . . Retrieved Components . | . . . Parts Scanalyzed . | . . . Part Schematics Acquired . | . . . Parts Damaged . | . . . Bothacking | -11 -10 -10 ------------ Run | Scr Mat Min Used RIF Installer . | . . . Robots Hacked . | . . . Non-combat . | . . . Combat . | . . . Robot Hacks Applied . | . . . Relay Couplers Released . | . . . Robots Rewired . | . . . Allies Hacked . | . . . Hacks Repelled . | . . . Allies | -11 -10 -10 -------- Run | Scr Mat Min Total Allies . | . . . Largest Group . | . . . Highest-Rated Group . | . . . Highest-Rated Ally . | . . . Total Orders . | . . . Ally Attacks . | . . . Total Damage . | . . . Kills . | . . . Allies Corrupted . | . . . Allies Melted . | . . . Intel | -11 -10 -10 ------- Run | Scr Mat Min Robot Analysis Total . | . . . Derelict Logs Recovered 1 | . . 1 Drone Launches . | . . . Drone Recoveries . | . . . Exploration | -11 -10 -10 ------------- Run | Scr Mat Min Turns Passed 648 | 34 532 82 Spaces Moved 539 | 33 451 55 Core 16 | 16 . . Treads . | . . . Legs . | . . . Wheels 523 | 17 451 55 Hover . | . . . Flight . | . . . Fastest Speed 50 | 50 80 100 Average Speed 87 | 65 87 100 Slowest Speed 110 | 80 90 110 Overloaded Moves . | . . . Propulsion Burnouts . | . . . Robots Hopped . | . . . Cave-ins Triggered . | . . . Exploration Rate (%) 31 | 3 76 15 Regions Visited 2 Branch Regions 1 Pre-discovered Areas 2 | . 1 1 Known Exits Taken 1 | . 1 . Unknown Exits Taken 1 | 1 . . Scrap Searched . | . . . Spaces Dug . | . . . Terrain Destroyed . | . . . Melee . | . . . Projectile . | . . . AOE . | . . . Terrain Rammed . | . . . Walls Destroyed . | . . . Machines Disabled . | . . . Actions | -11 -10 -10 --------- Run | Scr Mat Min Total 643 | 43 530 70 Wait 35 | . 32 3 Move 537 | 32 450 55 Hop . | . . . Pick Up 18 | 4 13 1 Fast Attach 3 | 3 . . Attach 10 | 3 3 4 Detach . | . . . Swap 2 | 1 1 . Drop 2 | . 2 . Fire 36 | . 29 7 Melee . | . . . Ram . | . . . Kick . | . . . Crush . | . . . Escape Stasis . | . . . Rewire . | . . . Trap . | . . . Miscellaneous . | . . . Route ------- -11/Scrapyard -10/Materials (discovered 3 exits: [*Mat x2] / *Min) -10/Mines History --------- Turn | Location | Event 15 | -11/Scrapyard | Discovered new exit (range 15) 35 | -11/Scrapyard | Entered Materials 315 | -10/Materials | Build established: Mutant 319 | -10/Materials | Discovered new exit (range 13) 467 | -10/Materials | Discovered new exit (range 3) 476 | -10/Materials | Identified exit to Mines 567 | -10/Materials | Entered Mines 614 | -10/Mines | Assembled infested the area 638 | -10/Mines | Core integrity fell below 50% 645 | -10/Mines | Core integrity fell below 20% 649 | -10/Mines | Destroyed by as-17642 with Assembled Heavy Rifle Last Messages --------------- 00591_ R-06 Scavenger collects Heat Sink. 00594_ R-06 Scavenger collects Aluminum Leg. 00599_ Acquired derelict log, extracted data. World map updated: -8/Materials. 00614_ ALERT: Infestation in the mines, dispatching Demolisher response squad. 00632_ C-30 ARC bursts open, deploying its payload. 00632_ D-53 Grenadier unfolds itself. 00632_ R-06 Scavenger destroyed. 00632_ U-05 Engineer destroyed. 00632_ U-05 Engineer lays Concrete. 00637_ Wheel destroyed. 00643_ Lgt. Assault Rifle destroyed. 00645_ as-38908 destroyed. 00645_ as-03047 destroyed. 00647_ as-46841 destroyed. 00647_ as-95012 destroyed. 00647_ Targeting Computer destroyed. 00649_ as-24806 destroyed. 00649_ Lgt. Assault Rifle destroyed. 00649_ Com. Wheel destroyed. Map ----- +----------------------------------------------------+ | ?????????????????????????????????????????????????? | | ?????????????????????????????????????????????????? | | ?????????????????????????????????????????????????? | | ?????????????????????????????????????????????????? | | ?????????????????????????????????????????????????? | | ?????????????????????????????????????????????????? | | ?????????????????????????????????????????????????? | | ?????????????????????????????????????????????????? | | ?????????????????????????????????????????????????? | | ?????????????????????????????????????????????????? | | ?????????????#???????????????????????????????????? | | ?????????????# ??????????????????????????????????? | | ?????????????# ??????????????????????????????????? | | ?????????????# ?????????????????????????????????? | | ?????????????# ?????????????????????????????????? | | ???????###???# #????????????????????????????????? | | ??????# ### ????????????????????????????????? | | ?????? ???????????????????????????????? | | ?????? ##?????????????????????????????? | | ????? ##???????????????????????????? | | ????? a a ##?????????????????????????? | | ???? a a ####?????????????????????? | | ???? a aa #??######?????????????? | | ???????# a a % %ad#### # #?????????????? | | ?????????# a % %ad *%= #?????????????? | | ?????????## a @ ####* ##?????????????? | | ??????????# ## #??# #?????????????? | | ?????????# ??## ###??# #?????????????? | | ????????# ????#####?????# #?????????????? | | ????????# ???????????????##! #?????????????? | | ????????## ???????????????##|%*## #???????????? | | ?????????####????????????????# ! #???????????? | | ?????????????????????????????# ####???????????? | | ?????????????????????????????# "#??????????????? | | ?????????????????????????????## "%##?????????????? | | ??????????????????????????????## " ##????????????? | | ???????????????????????????????# %=#### #???? | | ???????????????????????????????# % #????? | | ??????????????????????????????# ## #?????? | | ??????????????????????????????# ##??? ##?????? | | ??????????????????????????????# ##????????????? | | ??????????????????????????????# #?????????????? | | ????????????????????????????? ##?????????????? | | ????????????????????????????$ ##??????????????? | | ???????????????????????????######????????????????? | | ?????????????????????????????????????????????????? | | ?????????????????????????????????????????????????? | | ?????????????????????????????????????????????????? | | ?????????????????????????????????????????????????? | | ?????????????????????????????????????????????????? | +----------------------------------------------------+ Best States ------------- Heat Dissipation 25 Energy Generation 10 Energy Capacity 250 Matter Stores 300 Matter Capacity 300 Sight Range 16 Terrain Scan Density 10 Evasion (%) 50 Targeting Accuracy 5 Item Schematics ----------------- None Robot Schematics ------------------ None Fabricated ------------ Nothing Alien Tech Used ----------------- None Achievements -------------- None Challenges ------------ None Game ------ Seed ControlIntegrationDrive Manual? 0 Play Time 00:07:02 Cumulative 146.3 hours Start 2021.04.26 @ 10:45:19 End 2021.04.26 @ 10:51:19 Sessions 1 Manual Loads 0 Difficulty Rogue Special Mode None Game No. 61 Rogue 61 Adventurer 0 Explorer 0 Win Type - Total 2 Types 2/0/0/0/0/0/0/0/0 Lore% 59 Gallery% 70 Achievement% 52 Wizard Run 0 Options --------- ASCII 0 Keyboard 0 Movement Mouse Keybinds 0 Fullscreen 2 Font 12/Smallcaps Map View 83x54 Tactical HUD 1 Map Filters NONE Filters NONE Steam X RUN: c35a67e1-6172-4109-9f96-ba3bfd52f5dc